bitfinex/quotes_ETHUSD_20250214
["timestamp","ask_amount","ask_price","bid_price","bid_amount"]
[1739543648614,4.52845,2704.8,2704.1,3.69806]
[1739543648837,0.8313,2704.8,2704.1,3.69806]
[1739543649034,0.8313,2704.8,2704.3,3.69779]
[1739543649254,0.8313,2704.8,2704.1,4.067866]
[1739543649555,0.8313,2704.8,2704.2,3.69794]
[1739543649733,0.8313,2704.8,2704.3,3.6978]
[1739543650162,0.8313,2704.8,2704.2,0.55]
[1739543650324,0.8313,2705.1,2704.4,3.69756]
[1739543650666,1.500959,2705.1,2704.6,3.69738]
[1739543650958,0.7941,2705.4,2704.9,3.69689]
[1739543651731,0.7941,2705.4,2705.1,3.69671]
[1739543651918,3.69591,2705.7,2705.0,3.73380367]
[1739543652118,0.7941,2705.9,2705.3,3.69642]
[1739543652119,4.48978,2705.9,2705.3,3.69642]
[1739543652357,4.48978,2705.9,2705.1,0.55]
[1739543652358,4.48978,2705.9,2705.2,3.69657]
[1739543653159,5.308294,2705.9,2705.2,3.69657]
[1739543653515,5.308294,2705.9,2705.1,0.55]
[1739543653753,5.308294,2705.9,2705.3,3.69644]
[1739543654963,1.612614,2705.9,2705.0,0.5252]
[1739543655133,0.7941,2705.9,2705.2,3.69657]
[1739543655338,3.69586,2705.8,2705.2,3.69657]
[1739543655773,0.7941,2705.9,2705.2,3.69657]
[1739543655959,0.03697846,2705.8,2705.0,4.22199]
[1739543656269,3.69598,2705.7,2705.1,3.69663]
[1739543656630,3.69583,2705.8,2705.2,3.69657]
[1739543657237,4.48974,2705.9,2705.3,3.6964]
[1739543657494,4.48974,2705.9,2705.0,3.69679]
[1739543657624,3.69577,2705.8,2705.0,4.121469]
[1739543657825,0.7941,2705.9,2705.1,0.55]
[1739543658027,3.69524,2706.2,2705.6,3.69597]
[1739543658235,0.7941,2706.3,2705.6,3.69597]
[1739543658236,4.48928,2706.3,2705.7,3.69585]
[1739543658452,9.002894,2706.3,2705.6,3.69597]
[1739543658650,5.307694,2706.3,2705.7,3.69586]
[1739543658866,0.7941,2706.3,2705.6,0.03695567]
[1739543659062,3.69486,2706.5,2705.5,0.55]
[1739543659269,3.69486,2706.5,2706.0,3.69545]
[1739543659567,0.7941,2706.6,2705.7,3.6959]
[1739543659770,4.48877,2706.6,2706.0,3.69542]
[1739543659974,1.242977,2706.6,2705.5,0.55]
[1739543660142,3.6957,2705.9,2705.4,3.6963]
[1739543660330,3.6957,2705.9,2705.4,3.69626]
[1739543660774,0.8234,2706.0,2705.6,3.69603]
[1739543660974,0.8234,2706.0,2705.7,3.69589]
[1739543661143,0.8234,2706.3,2705.8,0.03695761]
[1739543661345,0.8234,2706.3,2705.6,3.696]
[1739543661346,5.34339625,2706.3,2705.6,3.696]
[1739543661673,3.69547,2706.1,2705.4,7.9425]
[1739543661905,3.69528,2706.2,2705.1,0.5252]
[1739543662037,0.8234,2706.3,2705.5,0.55]
[1739543662248,0.8234,2706.3,2705.9,3.69561]
[1739543662561,0.86037846,2706.3,2705.5,3.69609]
[1739543662763,0.86037846,2706.3,2705.3,3.69636]
[1739543662764,3.69563,2705.9,2705.3,3.69636]
[1739543662964,3.69586,2705.8,2705.2,3.6965]
[1739543663134,3.69563,2705.9,2705.3,3.69642]
[1739543663337,3.69594,2705.7,2705.1,4.22179]
[1739543663536,0.03697846,2705.6,2704.5,5.861]
[1739543663807,0.8234,2705.3,2704.9,3.69698]
[1739543663976,4.51985,2705.3,2704.7,3.69717]
[1739543664170,0.8234,2705.3,2704.5,5.861]
[1739543664394,0.8234,2705.3,2704.6,1.04535129]
[1739543664561,0.8234,2705.7,2705.1,3.6966]
[1739543664763,0.8234,2705.7,2704.7,4.24723]
[1739543664764,0.8234,2705.7,2705.4,3.69619]
[1739543665160,0.8234,2705.7,2705.2,0.03696095]
[1739543665161,0.8234,2706.1,2705.2,3.69658]
[1739543665521,0.8234,2706.1,2705.8,3.69566]
[1739543665692,0.8234,2706.5,2705.8,0.03695605]
[1739543665857,1.7163848,2706.5,2706.1,3.69528]
[1739543666054,1.7163848,2706.5,2706.1,3.69526]
[1739543667354,1.7163848,2706.5,2706.2,3.69514]
[1739543667592,3.0,2707.1,2706.4,3.69494]
[1739543667593,0.8234,2706.8,2706.4,3.69494]
[1739543667977,0.8234,2706.8,2706.2,3.69518]
[1739543668181,0.8234,2706.8,2706.3,3.69504]
[1739543668379,0.8234,2706.8,2706.4,3.69492]
[1739543668896,0.8234,2707.1,2706.8,3.69434]
[1739543669193,4.51691,2707.5,2706.9,3.69415]
[1739543669506,0.451691,2707.4,2706.9,3.69415]
[1739543669859,0.8234,2708.1,2707.0,0.56213978]
[1739543670194,3.69279,2708.0,2707.3,3.69363]
[1739543670395,0.8234,2708.1,2707.6,3.69322]
[1739543670759,0.8234,2708.1,2707.6,7.38643]
[1739543670975,0.8234,2708.1,2707.6,3.69321]
[1739543671167,0.45159,2708.0,2707.6,3.69321]
[1739543671370,0.8234,2708.1,2707.6,3.6932]
[1739543672382,0.8234,2708.1,2707.4,3.69354]
[1739543672383,4.51606,2708.1,2707.5,4.24341]
[1739543673306,4.51606,2708.1,2707.6,3.6933]
[1739543673835,0.8234,2708.1,2707.6,3.6933]
[1739543673968,0.8234,2708.1,2707.7,3.69316]
[1739543674734,4.51604,2708.1,2707.5,0.55]
[1739543675038,1.644242,2708.1,2707.2,3.69376]
[1739543675174,3.69295,2707.9,2707.2,3.69376]
[1739543675374,3.69295,2707.9,2707.3,3.69369]
[1739543675693,3.69311,2707.8,2707.2,3.0]
[1739543675913,3.69327,2707.7,2707.1,3.6939]
[1739543676159,3.69327,2707.7,2707.0,4.21925]
[1739543676160,4.062567,2707.7,2707.0,0.5252]
[1739543676413,3.69358,2707.4,2706.9,3.69426]
[1739543676620,0.8205,2707.6,2707.1,3.69397]
[1739543676970,0.8205,2707.6,2707.1,3.69388]
[1739543677176,0.8205,2707.6,2706.9,3.69414]
[1739543677414,3.69344,2707.5,2706.9,3.69414]
[1739543677596,0.8205,2707.6,2707.0,0.55]
[1739543677890,0.8205,2707.6,2707.1,3.69389]
[1739543678069,0.8205,2707.6,2707.0,0.55]
[1739543678268,0.03697846,2707.5,2706.7,3.69445]
[1739543678497,3.69386,2707.2,2706.7,3.69445]
[1739543678705,7.41182798,2708.0,2706.5,3.6948]
[1739543678706,1.189886,2707.1,2706.6,3.69465]
[1739543678971,0.8205,2707.4,2707.0,3.69412]
[1739543679198,4.51409,2707.4,2706.6,3.69459]
[1739543679389,3.69385,2707.2,2706.7,3.69451]
[1739543680190,4.51409,2707.4,2706.7,3.69451]
[1739543680395,4.965499,2707.4,2706.8,0.55]
[1739543680975,8.659189,2707.4,2706.8,0.55]
[1739543681480,3.69375,2707.3,2706.8,0.55]
[1739543682505,8.659209,2707.4,2706.8,0.55]
[1739543682702,4.965499,2707.4,2706.8,0.55]
[1739543682903,3.69401,2707.1,2706.3,4.22018]
[1739543683090,3.69426,2706.9,2706.3,4.22018]
[1739543683296,3.69426,2706.9,2706.0,4.69382798]
[1739543683297,4.51498,2706.8,2706.1,3.69528]
[1739543683624,3.69462,2706.7,2706.1,3.69528]
[1739543683857,4.51498,2706.8,2706.2,0.55]
[1739543684184,4.51498,2706.8,2706.2,7.94033]
[1739543684343,4.51498,2706.8,2706.2,4.24513]
[1739543684676,3.69467,2706.6,2706.1,0.55]
[1739543684819,4.51498,2706.8,2706.2,3.69514]
[1739543685018,3.69454,2706.7,2706.2,3.69514]
[1739543686842,0.8205,2706.8,2706.4,0.55]
[1739543687130,4.51435,2707.2,2706.6,0.55]
[1739543687333,4.51435,2707.2,2706.8,0.55]
[1739543687334,0.8205,2707.2,2706.8,0.55]
[1739543687534,0.8205,2707.2,2706.8,4.24439]
[1739543687732,0.8205,2707.2,2706.8,0.55]
[1739543687930,4.51435,2707.2,2706.8,0.55]
[1739543688125,0.8205,2707.2,2706.8,0.55]
[1739543688322,0.8205,2707.5,2706.9,3.69418]
[1739543688526,0.8205,2707.5,2707.1,0.55]
[1739543688948,0.8205,2707.5,2706.9,0.55]
[1739543689166,3.69365,2707.4,2706.9,0.55]
[1739543689555,3.69373,2707.3,2706.9,0.55]
[1739543690667,3.69365,2707.4,2706.9,0.55]
[1739543690865,3.69365,2707.4,2706.9,1.0221274]
[1739543691025,3.69367,2707.4,2706.9,4.7162474]
[1739543691625,4.51402,2707.5,2706.9,4.7162474]
[1739543691862,4.51402,2707.5,2706.9,1.0221274]
[1739543691863,0.8205,2707.5,2706.9,1.0221274]
[1739543692063,3.69366,2707.4,2706.9,1.0221274]
[1739543692266,4.51395,2707.5,2706.9,1.0221274]
[1739543692451,3.69331,2707.6,2707.1,4.24395]
[1739543692650,3.69331,2707.6,2706.9,0.55]
[1739543693057,7.3867,2707.6,2707.1,0.55]
[1739543693368,3.69361,2707.4,2707.1,0.55]
[1739543693523,3.69331,2707.6,2707.1,0.55]
[1739543693726,3.69344,2707.5,2707.1,0.55]
[1739543693923,3.69344,2707.5,2707.0,0.55]
[1739543694266,3.69328,2707.7,2707.2,0.55]
[1739543694469,0.827,2707.8,2707.4,0.55]
[1739543694640,3.69278,2708.0,2707.4,0.55]
[1739543694829,3.6929,2707.9,2707.4,4.24357]
[1739543695041,3.69278,2708.0,2707.4,0.55]
[1739543695385,3.69297,2707.9,2707.4,0.55]
[1739543695562,3.69297,2707.9,2707.4,4.24357]
[1739543696082,3.69313,2707.8,2707.4,0.55]
[1739543696577,4.51972,2708.1,2707.4,4.720412]
[1739543696777,3.69297,2707.9,2707.5,0.55]
[1739543697581,4.51971,2708.1,2707.7,0.55]
[1739543697782,7.38543,2708.1,2707.7,0.55]
[1739543697958,3.69271,2708.1,2707.7,0.55]
[1739543698156,3.69297,2707.9,2707.5,0.55]
[1739543698361,3.69311,2707.8,2707.3,3.69365]
[1739543698564,3.69287,2708.0,2707.4,0.55]
[1739543698745,3.69287,2708.0,2707.6,0.55]
[1739543699586,3.6929,2707.9,2707.6,0.55]
[1739543700152,3.69272,2708.1,2707.6,0.55]
[1739543700351,0.832,2708.4,2707.8,0.5252]
[1739543700569,3.69728,2708.4,2707.9,0.58692454]
[1739543700769,0.005,2708.4,2707.9,4.27971454]
[1739543701049,0.005,2708.4,2707.9,0.55]
[1739543701261,3.69724,2708.4,2707.9,0.55]
[1739543701589,0.005,2708.4,2707.9,4.24289]
[1739543701792,0.005,2708.4,2707.9,3.69289]
[1739543702087,3.6933,2707.6,2707.5,0.5252]
[1739543702287,3.69361,2707.4,2707.0,0.5252]
[1739543702498,3.73009846,2707.8,2707.0,4.2193]
[1739543702719,0.827,2707.9,2707.0,0.5252]
[1739543702992,3.69331,2707.6,2707.1,4.24398]
[1739543703194,0.827,2707.9,2707.3,0.55]
[1739543703400,4.52432,2708.4,2707.8,0.55]
[1739543703637,0.005,2708.4,2708.0,0.55]
[1739543703900,0.005,2708.4,2708.3,4.24235]
[1739543704494,0.005,2708.4,2708.3,0.55]
[1739543704698,0.005,2708.4,2708.3,4.719124]
[1739543704898,0.005,2708.4,2708.3,12.69307232]
[1739543705101,0.005,2708.4,2708.3,12.65615198]
[1739543705304,0.005,2708.4,2708.3,12.67115198]
[1739543705473,5.5e-06,2708.7,2708.6,3.69194]
[1739543705671,5.5e-06,2708.7,2708.6,13.31677835]
[1739543705870,5.5e-06,2708.7,2708.6,13.28736998]
[1739543706287,5.5e-06,2708.7,2708.6,13.27236998]
[1739543706459,5.5e-06,2708.7,2708.6,1.618602]
[1739543706661,5.5e-06,2708.7,2708.3,4.169004]
[1739543706892,5.5e-06,2708.7,2708.5,3.69198]
[1739543707292,5.5e-06,2708.7,2708.3,0.476774]
[1739543707460,5.5e-06,2708.7,2707.9,3.69277]
[1739543707461,3.69206,2708.6,2707.9,3.69277]
[1739543707859,3.69206,2708.6,2708.0,3.0]
[1739543708057,3.69251,2708.2,2707.8,0.5252]
[1739543708257,3.69224,2708.4,2707.8,0.5252]
[1739543708461,3.69236,2708.3,2707.8,1.247047]
[1739543708662,3.69236,2708.3,2707.8,0.721847]
[1739543708890,3.69249,2708.2,2707.8,0.721847]
[1739543709062,4.52196,2708.5,2707.5,0.5252]
[1739543709262,0.8298,2708.5,2708.0,0.55]
[1739543709627,3.6918055,2708.7,2708.6,3.69194]
[1739543709628,5.5e-06,2708.7,2708.6,3.69194]
[1739543710410,5.5e-06,2708.7,2708.6,4.24194]
[1739543710613,5.5e-06,2708.7,2708.6,5.090342]
[1739543711182,5.5e-06,2708.7,2708.6,12.50216998]
[1739543711385,5.5e-06,2708.7,2708.6,13.04236998]
[1739543711580,4.51981,2710.1,2708.6,13.04236998]
[1739543711581,3.69001,2710.1,2709.4,3.69083]
[1739543711779,3.69001,2710.1,2709.5,0.03690254]
[1739543711984,0.73342547,2710.8,2708.7,3.565]
[1739543711985,0.8298,2709.8,2708.9,0.5252]
[1739543712209,4.5202,2709.8,2709.1,3.0]
[1739543712521,3.69036,2709.8,2709.0,7.96182798]
[1739543712668,3.69061,2709.6,2709.0,7.96182798]
[1739543712876,3.6902,2709.9,2709.1,0.8487028]
[1739543713214,0.8298,2710.1,2709.2,0.55]
[1739543713511,3.69004,2710.0,2709.3,3.69087]
[1739543714090,0.8298,2710.1,2709.3,3.69087]
[1739543714091,3.68979,2710.2,2709.5,0.5252]
[1739543714292,3.6899,2710.1,2709.5,4.2158]
[1739543714512,3.6899,2710.1,2709.6,0.42158]
[1739543714701,3.69004,2710.0,2709.6,0.42158]
[1739543715099,3.69044,2709.7,2709.2,0.5252]
[1739543715330,0.03697846,2709.6,2708.9,0.5252]
[1739543715631,3.69081,2709.5,2708.9,0.5252]
[1739543715829,3.69066,2709.6,2708.9,4.21673]
[1739543715991,3.69066,2709.6,2709.0,0.421673]
[1739543716535,3.69052,2709.7,2708.9,0.5252]
[1739543716848,3.69055,2709.7,2709.0,7.38265]
[1739543717006,3.69055,2709.7,2709.1,4.24119]
[1739543717202,7.38113,2709.7,2709.1,0.55]
[1739543717401,3.69093,2709.4,2708.9,0.5252]
[1739543717616,3.69113,2709.2,2708.9,0.35252]
[1739543717985,3.69113,2709.2,2708.6,1.373602]
[1739543718296,7.38236,2709.2,2708.6,1.373602]
[1739543718492,3.69058,2709.6,2708.7,0.55]
[1739543718734,3.69059,2709.6,2709.0,3.69131]
[1739543718886,0.8298,2709.8,2709.1,0.369131]
[1739543719233,3.69061,2709.6,2709.1,0.369131]
[1739543719395,3.69074,2709.5,2708.9,0.55]
[1739543719589,7.38156,2709.5,2708.9,0.55]
[1739543719788,0.8298,2709.8,2708.9,0.55]
[1739543719789,3.69059,2709.6,2708.9,0.55]
[1739543720116,3.69109,2709.3,2708.6,1.373602]
[1739543720319,3.69109,2709.3,2708.7,0.4373602]
[1739543720519,0.8298,2709.8,2708.7,0.9873602]
[1739543720723,3.69057,2709.7,2709.0,0.55]
[1739543720928,3.68998,2710.1,2709.3,4.21617]
[1739543721087,0.7949,2710.2,2709.6,3.6905]
[1739543721431,0.7949,2710.5,2709.7,7.41758862]
[1739543721589,3.6895,2710.4,2709.8,4.21546]
[1739543721795,7.3791,2710.4,2709.9,0.421546]
[1739543721995,7.37909,2710.4,2709.9,0.421546]
[1739543722191,0.03697846,2710.3,2709.3,0.5252]
[1739543722423,3.68976,2710.2,2709.5,3.69063]
[1739543722610,3.6897,2710.3,2709.4,0.55]
[1739543722806,3.6897,2710.3,2709.3,0.5252]
[1739543723010,7.37945,2710.3,2709.6,3.69049]
[1739543723335,3.6897,2710.3,2709.7,0.369049]
[1739543723519,3.68991,2710.1,2709.7,0.369049]
[1739543723836,3.68991,2710.1,2709.4,0.55]
[1739543723837,3.69019,2709.9,2709.4,0.55]
[1739543723997,3.69019,2709.9,2709.3,0.5252]
[1739543724198,3.69046,2709.7,2709.3,0.5252]
[1739543724534,3.69024,2709.9,2709.3,0.5252]
[1739543724731,3.69045,2709.7,2709.3,1.0032344]
[1739543725041,4.48514,2709.9,2709.3,1.0032344]
[1739543725249,3.69052,2709.7,2709.3,1.0032344]
[1739543725472,3.69058,2709.6,2709.3,1.0032344]
[1739543725774,3.69072,2709.5,2709.1,0.424144]
[1739543725916,3.69052,2709.7,2709.1,0.424144]
[1739543726235,3.69075,2709.5,2709.1,0.424144]
[1739543726406,4.44880644,2709.8,2708.7,0.9625602]
[1739543726606,3.69094,2709.4,2708.8,3.69164]
[1739543726870,3.69073,2709.5,2708.8,3.69164]
[1739543727009,3.69088,2709.4,2708.8,3.69164]
[1739543727371,7.38182,2709.4,2708.9,0.46542002]
[1739543727572,3.69088,2709.4,2708.9,0.46542002]
[1739543727737,3.69079,2709.5,2708.9,0.46542002]
[1739543727911,3.69054,2709.7,2709.0,0.55]
[1739543728117,3.69054,2709.7,2709.1,0.5252]
[1739543728354,3.69095,2709.4,2709.1,0.5252]
[1739543728531,3.69067,2709.6,2708.7,0.5252]
[1739543728732,3.69067,2709.6,2708.8,4.24162]
[1739543728915,0.448544,2709.7,2708.8,4.24162]
[1739543728916,3.69093,2709.4,2708.8,4.24162]
[1739543729117,3.6912,2709.2,2708.9,0.476682]
[1739543729317,3.69094,2709.4,2708.9,0.476682]
[1739543729658,3.69066,2709.6,2708.9,4.168202]
[1739543729873,3.69078,2709.5,2709.0,0.036909]
[1739543730219,0.448544,2709.7,2708.9,0.476682]
[1739543730220,3.69099,2709.3,2708.9,0.476682]
[1739543730418,3.69119,2709.2,2708.7,0.5252]
[1739543730647,3.69129,2709.1,2708.7,0.5252]
[1739543730840,3.69126,2709.1,2708.7,0.5252]
[1739543731157,3.6914,2709.0,2708.7,0.5252]
[1739543731920,3.69162,2708.9,2708.4,0.5252]
[1739543732128,3.69167,2708.8,2708.4,1.316195]
[1739543732533,0.11764571,2708.7,2708.4,1.316195]
[1739543733034,3.69071,2709.6,2708.9,3.69143]
[1739543733222,7.38187,2709.4,2709.0,0.5252]
[1739543733416,3.69112,2709.2,2708.6,0.5252]
[1739543733630,3.6915,2709.0,2708.6,0.5252]
[1739543733934,4.48619,2709.1,2708.4,0.790995]
[1739543734131,3.69206,2708.6,2708.3,0.5252]
[1739543734347,3.69202,2708.6,2708.3,0.5252]
[1739543735168,3.692,2708.6,2708.1,3.69262]
[1739543735316,3.69175,2708.8,2708.1,3.69253]
[1739543735665,0.7949,2709.1,2708.3,0.0075]
[1739543735827,3.69108,2709.3,2708.6,4.21709]
[1739543736163,0.10070457,2709.2,2708.7,3.69179]
[1739543736320,0.10070457,2709.2,2708.9,3.69151]
[1739543736522,0.10070457,2709.2,2708.8,4.482468]
[1739543736830,3.69086,2709.4,2708.8,4.482468]
[1739543737031,0.10034767,2709.1,2708.8,4.482468]
[1739543737247,3.69086,2709.4,2708.9,0.5032468]
[1739543737558,3.69116,2709.2,2708.9,0.5032468]
[1739543737859,3.69116,2709.2,2708.7,3.6918]
[1739543738030,0.10038188,2709.1,2708.7,3.6918]
[1739543738231,3.79167188,2709.1,2708.6,4.21704]
[1739543738437,0.10038188,2709.1,2708.6,0.5252]
[1739543738639,3.79172188,2709.1,2708.6,0.5252]
[1739543738822,0.10038188,2709.1,2708.7,4.113508]
[1739543739026,0.10038188,2709.1,2708.7,0.421718]
[1739543739225,3.6916,2708.9,2708.6,0.5252]
[1739543739422,0.91098188,2709.1,2708.3,0.5252]
[1739543739643,3.69141,2709.0,2708.3,0.5252]
[1739543739991,3.79196304,2708.9,2708.3,7.90979]
[1739543740487,0.10043304,2708.9,2708.3,4.21745]
[1739543740693,0.10043304,2708.9,2708.6,3.69191]
[1739543740922,3.69135,2709.1,2708.6,3.69191]
[1739543741058,0.10027152,2708.8,2708.3,3.69228]
[1739543741674,3.69169,2708.8,2708.3,3.69228]
[1739543742053,0.13702677,2708.7,2708.1,3.5252]
[1739543742253,0.13702677,2708.7,2708.1,1.301993]
[1739543742254,3.69216,2708.5,2708.1,1.301993]
[1739543742491,3.69199,2708.6,2708.1,1.301993]
[1739543742794,0.10044705,2708.5,2708.2,3.69247]
[1739543742998,3.69182,2708.7,2708.2,3.69247]
[1739543743300,4.50204,2709.0,2708.4,3.69216]
[1739543743454,4.50204,2709.0,2708.4,4.430611]
[1739543743654,3.79171904,2708.9,2708.4,0.738451]
[1739543744067,3.69181,2708.7,2708.2,3.69248]
[1739543744397,0.09979766,2708.6,2708.1,0.776793]
[1739543744609,0.09979766,2708.6,2708.1,4.469303]
[1739543744821,3.79173766,2708.6,2708.1,4.469303]
[1739543745027,0.09979766,2708.6,2708.2,3.69246]
[1739543745163,0.09979766,2708.6,2708.3,0.4469253]
[1739543745363,0.8106,2709.0,2708.9,3.69153]
[1739543745561,3.69089,2709.4,2708.9,3.69153]
[1739543745784,3.69058,2709.6,2709.0,3.69131]
[1739543745785,3.69075,2709.5,2709.0,3.69131]
[1739543746060,3.69096,2709.4,2708.8,4.21675]
[1739543746259,3.69096,2709.4,2708.8,5.007594]
[1739543746561,0.8106,2709.7,2709.3,3.69098]
[1739543746762,0.8106,2709.7,2709.3,3.69095]
[1739543747139,3.69017,2709.9,2709.4,3.69084]
[1739543747263,0.8106,2710.3,2709.5,0.03690818]
[1739543747600,4.49911,2711.2,2709.8,4.41182798]
[1739543747811,3.68866,2711.1,2710.5,3.68923]
[1739543747970,4.49911,2711.2,2710.2,0.5252]
[1739543747971,0.8106,2711.2,2710.2,0.5252]
[1739543748172,0.8106,2711.2,2709.8,4.21544]
[1739543748173,3.68923,2710.6,2709.8,4.21544]
[1739543748575,3.6891,2710.7,2710.0,3.68994]
[1739543748774,3.68925,2710.6,2710.0,3.68994]
[1739543748994,0.43777,2711.1,2709.8,0.5252]
[1739543748995,3.68964,2710.3,2709.8,0.5252]
[1739543749303,3.68904,2710.8,2709.8,1.0752]
[1739543749509,4.49947,2710.9,2710.0,3.68999]
[1739543749812,3.68909,2710.7,2710.1,0.37268873]
[1739543750111,3.68922,2710.6,2710.1,0.37268873]
[1739543750313,3.68909,2710.7,2710.1,0.37268873]
[1739543750597,3.68909,2710.7,2709.8,4.21548]
[1739543750598,3.68972,2710.3,2709.8,0.5252]
[1739543750976,7.37947,2710.3,2709.8,0.5252]
[1739543751175,3.68984,2710.2,2709.6,7.24049]
[1739543751803,0.09242104,2710.1,2709.7,3.69043]
[1739543752007,0.09242104,2710.1,2709.8,1.093092]
[1739543752319,3.69022,2709.9,2709.2,12.96626]
[1739543752603,0.7896,2710.2,2709.2,12.96626]
[1739543752604,3.78246838,2709.8,2709.2,0.5252]
[1739543752809,3.78246838,2709.8,2709.2,4.21631]
[1739543752962,3.78246838,2709.8,2709.3,0.421631]
[1739543753304,3.69049,2709.7,2709.3,0.421631]
[1739543753504,3.69066,2709.6,2709.0,3.69131]
[1739543753820,3.69074,2709.5,2708.9,0.5252]
[1739543753966,3.69093,2709.4,2708.9,0.5252]
[1739543754161,0.09198131,2709.4,2708.9,0.5252]
[1739543754489,0.09198131,2709.4,2709.0,3.69131]
[1739543755284,0.09198131,2709.4,2709.2,3.69112]
[1739543755485,0.7896,2709.8,2709.0,3.69129]
[1739543755729,3.69053,2709.7,2709.0,3.69129]
[1739543755924,3.69067,2709.6,2709.0,3.69129]
[1739543756130,3.69067,2709.6,2709.1,0.47172494]
[1739543756313,3.77845948,2709.6,2709.1,4.16295494]
[1739543756717,0.08778948,2709.6,2709.1,4.16295494]
[1739543757324,3.77838948,2709.6,2709.1,0.47172494]
[1739543757689,3.77838948,2709.6,2708.9,0.5252]
[1739543757690,3.69095,2709.4,2708.9,0.5252]
[1739543757886,0.08778948,2709.6,2708.6,3.69185]
[1739543758087,0.7896,2709.2,2708.4,3.69213]
[1739543758301,3.69153,2708.9,2708.3,0.8062]
[1739543758629,0.08696743,2708.8,2708.4,0.449867]
[1739543758927,3.69172,2708.8,2708.4,0.449867]
[1739543759229,3.69146,2709.0,2708.4,4.142047]
[1739543759533,3.69141,2709.0,2708.4,4.142047]
[1739543759699,0.08686848,2708.9,2708.4,4.142047]
[1739543759914,3.69195,2708.6,2708.1,3.69251]
[1739543760209,0.08311591,2708.5,2708.1,3.69251]
[1739543760516,3.69223,2708.4,2707.8,4.21811]
[1739543760687,3.69198,2708.6,2707.8,1.316336]
[1739543760888,8.17307,2708.8,2708.2,3.69247]
[1739543761227,3.69231,2708.4,2707.8,4.21814]
[1739543761727,0.08006327,2708.3,2708.0,3.69273]
[1739543762026,3.6921,2708.5,2708.0,3.69273]
[1739543762232,0.7896,2708.8,2708.0,3.69273]
[1739543762233,3.69183,2708.7,2708.1,3.69255]
[1739543762431,4.48135,2708.8,2707.8,4.2181]
[1739543762432,3.77241041,2708.4,2707.8,4.2181]
[1739543762730,3.69201,2708.6,2707.9,0.42181]
[1739543762931,0.07999137,2708.3,2708.0,3.69275]
[1739543763131,7.38459,2708.4,2707.9,0.42181]
[1739543763330,0.08022564,2708.5,2707.9,0.42181]
[1739543763529,4.4813,2708.8,2708.2,3.69241]
[1739543763698,0.7896,2708.8,2708.3,3.69233]
[1739543763893,3.77231041,2708.7,2708.1,3.69253]
[1739543764123,3.69215,2708.5,2707.9,4.03593495]
[1739543764434,3.77140176,2708.4,2707.9,4.03593495]
[1739543765128,3.77140176,2708.4,2707.8,0.5252]
[1739543765329,3.69253,2708.2,2707.7,4.24316]
[1739543765643,0.07819807,2708.1,2707.7,1.424178]
[1739543765844,0.07819807,2708.1,2708.0,3.69276]
[1739543766013,7.3841,2708.6,2708.0,3.69276]
[1739543766014,3.69209,2708.5,2708.0,3.69276]
[1739543766215,0.07806709,2708.1,2707.7,0.55]
[1739543766549,0.7929,2708.2,2707.7,3.69314]
[1739543766843,4.48498,2708.5,2708.0,3.69274]
[1739543767202,3.6919,2708.7,2708.1,3.69262]
[1739543767443,0.7929,2708.8,2708.4,3.69214]
[1739543767629,3.69229,2708.4,2707.9,3.69286]
[1739543767833,3.69238,2708.3,2707.8,4.887524]
[1739543768210,3.69238,2708.3,2707.8,4.362324]
[1739543768638,4.41182798,2708.5,2707.7,0.54848731]
[1739543768953,3.69274,2708.1,2707.7,0.54848731]
[1739543769149,3.69274,2708.1,2707.6,3.6933]
[1739543769307,3.69283,2708.0,2707.5,1.13488351]
[1739543769506,0.7929,2707.8,2707.5,0.34292351]
[1739543769807,0.0766735,2707.7,2707.5,0.34292351]
[1739543770008,0.7929,2708.1,2707.6,3.6933]
[1739543770213,3.69254,2708.2,2707.6,4.2185]
[1739543770437,0.7929,2708.4,2707.6,0.98134235]
[1739543770754,3.69236,2708.3,2707.9,3.69277]
[1739543771246,0.7929,2708.4,2707.9,3.69277]
[1739543771446,4.48512,2708.4,2707.9,3.69277]
[1739543771811,4.48512,2708.4,2707.7,4.24316]
[1739543771812,3.69236,2708.3,2707.8,0.55]
[1739543772051,3.69236,2708.3,2707.8,1.07243823]
[1739543772248,0.7929,2708.4,2707.9,3.69281]
[1739543772553,3.69191,2708.7,2707.8,1.07243823]
[1739543772708,3.69201,2708.6,2708.1,0.55]
[1739543772905,3.69257,2708.2,2707.7,3.6931]
[1739543773110,3.69257,2708.2,2707.7,3.69313]
[1739543773332,3.69269,2708.1,2707.6,4.14941235]
[1739543773634,3.76865695,2708.1,2707.7,0.55]
[1739543774407,0.07596695,2708.1,2707.7,4.24313]
[1739543774658,3.69244,2708.3,2707.7,0.55]
[1739543774913,0.07580524,2708.0,2707.4,3.69358]
[1739543775154,3.69257,2708.2,2707.6,3.69321]
[1739543775328,0.8017,2707.8,2707.7,0.55]
[1739543775771,0.8017,2707.8,2707.6,3.69321]
[1739543776071,3.69205,2708.6,2707.7,0.55]
[1739543776229,3.69197,2708.6,2708.1,3.69251]
[1739543776431,4.49351,2708.7,2708.4,3.69214]
[1739543776432,0.8017,2708.7,2708.4,3.69214]
[1739543776633,4.49361,2708.7,2708.3,0.55]
[1739543776812,3.69194,2708.6,2708.2,0.55]
[1739543777011,0.8017,2708.7,2708.2,8.359096]
[1739543777012,4.49351,2708.7,2708.2,8.359096]
[1739543777271,0.8017,2708.7,2708.2,0.974266]
[1739543777419,3.69112,2709.2,2708.5,0.5252]